bitfinex/quotes_ETHUSD_20241215
["timestamp","ask_amount","ask_price","bid_price","bid_amount"]
[1734238003472,0.88894096,3890.9,3890.4,0.36911329]
[1734238003670,1.89686758,3891.1,3890.4,0.36911329]
[1734238003884,2.222305,3891.0,3890.4,0.36911329]
[1734238004078,0.888922,3890.9,3890.4,0.36911329]
[1734238004281,1.07626758,3891.1,3890.6,0.7548]
[1734238004492,1.07626758,3891.2,3890.6,0.7548]
[1734238004786,0.88887761,3891.1,3890.6,0.7548]
[1734238004953,1.07626758,3891.3,3890.7,0.37311746]
[1734238005154,2.22218088,3891.2,3890.7,0.37311746]
[1734238005360,0.88887235,3891.1,3890.7,0.37311746]
[1734238005558,1.07626758,3891.3,3890.7,0.37311746]
[1734238005887,2.22219165,3891.2,3890.7,0.37311746]
[1734238006050,3.29848766,3891.1,3890.3,0.3657929]
[1734238006244,0.8206,3890.9,3890.2,3.32531]
[1734238006685,0.8206,3890.9,3890.2,0.7548]
[1734238007278,0.88895877,3890.8,3890.2,0.7548]
[1734238007594,0.8206,3890.9,3890.2,0.7548]
[1734238007802,0.88893761,3890.8,3890.2,0.7548]
[1734238008087,0.8206,3890.9,3890.2,0.7548]
[1734238008298,0.88895474,3890.8,3890.2,1.21519543]
[1734238008464,0.8206,3890.9,3890.2,0.46039543]
[1734238008665,2.22246836,3890.8,3890.0,0.7548]
[1734238008886,0.8889918,3890.7,3890.0,0.7548]
[1734238009092,1.07626758,3890.8,3890.0,0.7548]
[1734238009418,1.12935602,3890.7,3890.0,0.7548]
[1734238009563,1.07626758,3890.8,3890.0,0.7548]
[1734238009765,1.12931878,3890.7,3890.1,0.33256]
[1734238009992,1.89686758,3890.9,3890.1,0.33256]
[1734238010157,2.46271302,3890.8,3890.1,0.33256]
[1734238010367,1.12928888,3890.7,3890.1,0.33256]
[1734238010573,1.89686758,3890.9,3890.1,0.33256]
[1734238010775,2.46266785,3890.8,3890.0,0.7548]
[1734238010976,2.462682,3890.7,3890.0,0.7548]
[1734238011190,1.12931695,3890.6,3890.0,0.7548]
[1734238011385,1.07626758,3890.8,3890.0,0.7548]
[1734238011656,0.7535,3890.5,3889.7,0.7952]
[1734238011907,2.46271651,3890.4,3889.7,0.7952]
[1734238012075,1.12933401,3890.3,3889.7,0.7952]
[1734238012412,0.24048135,3890.2,3889.7,0.7952]
[1734238012597,1.82976758,3890.5,3889.7,0.7952]
[1734238012815,3.53886447,3890.4,3889.7,0.7952]
[1734238012981,2.46257272,3890.3,3889.7,0.7952]
[1734238013167,0.24048441,3890.2,3889.4,0.7952]
[1734238013369,1.07626758,3890.4,3889.4,0.7952]
[1734238013574,1.12915962,3890.3,3889.4,0.7952]
[1734238013843,0.24045398,3890.2,3889.4,1.31154979]
[1734238014022,1.07626758,3890.4,3889.4,1.31154979]
[1734238014231,1.12911692,3890.3,3889.4,1.31154979]
[1734238014506,1.12911692,3890.3,3889.1,3.7952]
[1734238014507,0.7535,3890.1,3889.1,3.7952]
[1734238014720,0.24045689,3890.0,3889.1,4.29878454]
[1734238014889,0.24045689,3889.9,3889.1,4.29878454]
[1734238015209,0.7535,3890.1,3889.2,0.81485789]
[1734238015426,0.24042217,3890.0,3889.2,0.81485789]
[1734238015563,0.24042217,3889.9,3889.2,0.81485789]
[1734238015765,0.7535,3890.1,3889.2,0.81485789]
[1734238015996,1.1289868,3890.0,3889.1,0.7952]
[1734238016207,1.07626758,3890.2,3889.2,0.7952]
[1734238016371,1.12889792,3890.1,3889.2,0.7952]
[1734238016563,0.24034703,3890.0,3889.2,0.7952]
[1734238016874,1.62626758,3890.2,3889.2,0.7952]
[1734238017198,1.1288456,3890.1,3889.2,1.31312433]
[1734238017399,0.24034954,3890.0,3889.2,1.31312433]
[1734238017606,0.55,3890.2,3889.2,1.31312433]
[1734238017775,1.12868538,3890.1,3889.2,1.31312433]
[1734238017978,0.24029497,3890.0,3889.2,1.31312433]
[1734238018327,0.55,3890.2,3889.3,0.51886495]
[1734238018607,1.12857529,3890.1,3889.3,0.51886495]
[1734238018809,0.24024756,3890.0,3889.3,0.51886495]
[1734238019086,1.07626758,3890.3,3889.6,0.7952]
[1734238019230,1.07626758,3890.4,3889.6,0.7952]
[1734238019419,0.24021017,3890.3,3889.7,0.20993852]
[1734238019653,1.07626758,3890.6,3889.7,0.20993852]
[1734238019853,1.12849479,3890.5,3889.7,0.20993852]
[1734238020077,1.12849479,3890.4,3889.7,0.20993852]
[1734238020243,0.24020764,3890.3,3889.7,0.20993852]
[1734238020448,1.07626758,3890.5,3889.8,0.48546128]
[1734238020716,1.12859834,3890.4,3889.9,0.7952]
[1734238020904,1.07626758,3890.5,3889.9,0.7952]
[1734238020905,1.07626758,3890.7,3889.9,3.36595]
[1734238021039,1.12854956,3890.6,3889.9,3.36595]
[1734238021274,0.24018779,3890.5,3889.9,3.36595]
[1734238021459,1.07626758,3890.7,3890.0,0.48543628]
[1734238021635,1.12869722,3890.6,3890.0,0.48543628]
[1734238021830,1.07626758,3890.7,3890.0,0.48543628]
[1734238022066,1.12869418,3890.6,3890.0,0.48543628]
[1734238022267,0.24017762,3890.5,3889.9,0.7952]
[1734238022491,0.24017762,3890.4,3889.9,0.7952]
[1734238022718,1.07626758,3890.5,3889.9,0.7952]
[1734238023016,1.12900183,3890.4,3889.9,0.7952]
[1734238023179,1.07626758,3890.5,3889.9,0.7952]
[1734238023513,2.22248667,3890.4,3889.9,0.7952]
[1734238023686,1.07626758,3890.5,3889.9,1.15280185]
[1734238023898,2.22275401,3890.4,3889.9,1.15280185]
[1734238024193,1.07626758,3890.5,3889.9,1.15280185]
[1734238024394,0.88910274,3890.4,3889.9,1.15280185]
[1734238024566,1.07626758,3890.5,3889.9,1.15280185]
[1734238024764,1.07626758,3890.6,3890.0,0.39335304]
[1734238024962,0.8891645,3890.5,3890.0,0.39335304]
[1734238025263,0.8891645,3890.5,3889.9,0.7952]
[1734238025264,0.88921713,3890.4,3889.9,0.7952]
[1734238025583,1.07626758,3890.5,3889.9,0.7952]
[1734238025775,2.22334433,3890.4,3889.9,0.7952]
[1734238026023,0.88933773,3890.3,3889.9,0.7952]
[1734238026165,1.07626758,3890.5,3889.9,0.7952]
[1734238026366,3.29966441,3890.4,3889.9,0.7952]
[1734238026618,0.88935873,3890.3,3889.9,0.7952]
[1734238026786,1.07626758,3890.4,3889.9,0.7952]
[1734238026967,0.88950221,3890.3,3889.9,0.7952]
[1734238027162,1.07626758,3890.4,3889.9,0.7952]
[1734238027372,0.88951814,3890.3,3889.9,0.7952]
[1734238027663,1.07626758,3890.4,3889.9,0.7952]
[1734238027894,0.88963304,3890.3,3889.9,0.7952]
[1734238028202,1.07626758,3890.4,3889.9,0.7952]
[1734238028361,2.22425705,3890.3,3889.9,0.7952]
[1734238028559,1.07626758,3890.4,3889.9,0.7952]
[1734238028801,0.88974471,3890.3,3889.9,0.7952]
[1734238028964,0.88975592,3890.2,3889.9,0.7952]
[1734238029170,1.07626758,3890.4,3889.9,0.7952]
[1734238029401,2.22440811,3890.3,3889.9,0.7952]
[1734238029608,0.88976324,3890.2,3889.9,0.7952]
[1734238029872,1.07626758,3890.4,3889.9,1.131815]
[1734238029969,2.68934819,3890.9,3889.9,0.7952]
[1734238029970,0.8898315,3890.3,3889.9,0.7952]
[1734238030168,1.07626758,3890.5,3889.9,0.7952]
[1734238030400,2.22460533,3890.4,3889.9,0.7952]
[1734238030704,0.88984213,3890.3,3889.9,0.7952]
[1734238030891,1.07626758,3890.4,3889.9,0.7952]
[1734238031084,2.22486985,3890.3,3889.9,0.7952]
[1734238031402,0.89006817,3890.2,3889.9,0.7952]
[1734238031704,1.07626758,3890.4,3889.9,0.7952]
[1734238031906,2.22517733,3890.3,3889.9,1.131801]
[1734238032201,1.07626758,3890.4,3889.9,1.131801]
[1734238032202,0.89007093,3890.2,3889.9,1.131801]
[1734238032360,1.07626758,3890.4,3889.9,0.7952]
[1734238032574,0.89007129,3890.3,3889.9,3.36593]
[1734238032768,1.07626758,3890.5,3889.9,3.36593]
[1734238033006,2.2251063,3890.4,3889.9,3.36593]
[1734238033300,0.89004252,3890.3,3889.9,3.36593]
[1734238033511,1.07626758,3890.5,3890.0,0.336593]
[1734238033692,2.22510333,3890.4,3890.0,0.336593]
[1734238033889,0.89004133,3890.3,3890.0,0.336593]
[1734238034080,1.07626758,3890.5,3890.0,0.336593]
[1734238034283,2.22517383,3890.4,3890.0,0.336593]
[1734238034484,0.89006953,3890.3,3890.0,0.336593]
[1734238034702,1.07626758,3890.5,3890.1,0.49809973]
[1734238035005,2.22510518,3890.4,3890.1,0.49809973]
[1734238035205,1.07626758,3890.5,3890.1,0.49809973]
[1734238035395,0.89004487,3890.4,3890.1,0.49809973]
[1734238035706,1.07626758,3890.6,3890.1,0.49809973]
[1734238035867,2.22504065,3890.5,3890.1,0.49809973]
[1734238036070,0.89003728,3890.4,3890.1,0.49809973]
[1734238036315,1.07626758,3890.6,3890.1,0.49809973]
[1734238036504,2.225041,3890.5,3889.9,3.36593]
[1734238036685,0.8900164,3890.4,3889.9,3.36593]
[1734238036881,1.07626758,3890.5,3889.9,3.36593]
[1734238037207,0.89001581,3890.4,3889.9,3.36593]
[1734238037381,1.07626758,3890.5,3889.9,3.36593]
[1734238037589,0.89001984,3890.4,3889.9,3.36593]
[1734238037786,1.07626758,3890.5,3889.9,3.36593]
[1734238038108,0.89002166,3890.4,3889.9,3.36593]
[1734238038306,1.07626758,3890.5,3889.9,3.36593]
[1734238038627,0.89002611,3890.4,3889.9,3.36593]
[1734238038781,1.07626758,3890.5,3889.9,3.36593]
[1734238038983,0.89002576,3890.4,3889.9,3.36593]
[1734238039211,1.07626758,3890.5,3889.9,3.36593]
[1734238039381,0.89005209,3890.4,3889.9,3.36593]
[1734238039612,1.07626758,3890.5,3889.9,0.7952]
[1734238039787,4.31675888,3890.4,3889.9,0.7952]
[1734238040000,4.31675888,3890.4,3889.3,3.0]
[1734238040001,3.54196128,3890.3,3889.4,3.7548]
[1734238040188,0.7748,3890.4,3889.4,3.7548]
[1734238040189,3.54197303,3890.2,3889.4,3.7548]
[1734238040411,2.22535456,3890.1,3889.4,3.7548]
[1734238040707,1.07626758,3890.2,3889.4,4.08629843]
[1734238041004,0.89015373,3890.1,3889.4,4.08629843]
[1734238041215,0.89017618,3890.0,3889.4,4.08629843]
[1734238041400,1.07626758,3890.2,3889.4,4.08629843]
[1734238041572,2.22555517,3890.1,3889.4,4.08629843]
[1734238041770,0.89022207,3890.0,3889.4,4.08629843]
[1734238042012,1.07626758,3890.2,3889.4,4.08629843]
[1734238042197,2.22555655,3890.1,3889.4,4.08629843]
[1734238042403,0.89022262,3890.0,3889.4,4.08629843]
[1734238042571,1.07626758,3890.2,3889.4,4.08629843]
[1734238042773,2.22559276,3890.1,3889.4,0.7548]
[1734238043011,1.07626758,3889.9,3889.4,0.7548]
[1734238043311,1.07626758,3889.7,3889.4,0.7548]
[1734238043515,0.8902371,3889.6,3889.4,0.7548]
[1734238043669,1.07626758,3889.7,3889.4,0.7548]
[1734238043874,2.22582093,3889.6,3889.4,0.7548]
[1734238044074,1.07626758,3889.7,3889.4,0.7548]
[1734238044275,0.89023501,3889.6,3889.4,0.7548]
[1734238044585,1.07626758,3889.7,3889.4,0.7548]
[1734238044782,2.22572437,3889.6,3889.4,0.7548]
[1734238044988,1.07626758,3889.7,3889.4,0.7548]
[1734238045197,0.89030019,3889.6,3889.0,0.7548]
[1734238045384,1.07626758,3889.7,3889.0,0.7548]
[1734238045628,0.89025646,3889.6,3889.0,0.7548]
[1734238045816,1.07626758,3889.7,3889.0,0.7548]
[1734238046027,0.89025584,3889.6,3889.0,0.7548]
[1734238046212,1.07626758,3889.7,3889.0,0.7548]
[1734238046387,0.89020403,3889.6,3889.0,0.7548]
[1734238046771,1.07626758,3889.7,3889.0,0.7548]
[1734238047044,2.22552401,3889.6,3889.0,0.7548]
[1734238047198,1.07626758,3889.7,3889.0,0.7548]
[1734238047528,2.2253572,3889.6,3889.0,0.7548]
[1734238047691,0.89014288,3889.5,3889.0,0.7548]
[1734238047891,1.07626758,3889.7,3889.0,0.7548]
[1734238048192,2.57152305,3889.6,3889.0,0.7548]
[1734238048402,0.89017847,3889.5,3889.0,0.7548]
[1734238048723,1.42234445,3889.6,3889.0,0.7548]
[1734238048724,1.07626758,3889.6,3889.0,0.7548]
[1734238048966,0.8901464,3889.5,3889.0,0.7548]
[1734238049091,1.07626758,3889.6,3889.0,0.7548]
[1734238049287,0.89006469,3889.5,3889.0,0.7548]
[1734238049595,1.07626758,3889.6,3889.0,0.7548]
[1734238049703,0.89010141,3889.5,3889.0,0.7548]
[1734238049897,1.07626758,3889.6,3889.0,0.7548]
[1734238050082,0.89010265,3889.5,3889.0,0.7548]
[1734238050314,1.07626758,3889.6,3889.0,0.7548]
[1734238050508,0.89009867,3889.5,3889.0,0.7548]
[1734238050716,1.07626758,3889.6,3889.0,0.7548]
[1734238050913,0.89009295,3889.5,3889.0,0.7548]
[1734238051087,1.07626758,3889.7,3889.0,0.7548]
[1734238051288,3.30137028,3889.6,3889.0,0.7548]
[1734238051485,0.89004108,3889.5,3889.0,0.7548]
[1734238051729,1.07626758,3889.6,3889.0,0.7548]
[1734238051902,0.89015328,3889.5,3889.0,0.7548]
[1734238052130,1.07626758,3889.6,3889.0,0.7548]
[1734238052307,0.8900979,3889.5,3889.0,0.7548]
[1734238052632,1.07626758,3889.6,3889.0,0.7548]
[1734238052832,0.89016488,3889.5,3889.0,0.7548]
[1734238053012,1.07626758,3889.6,3889.0,0.7548]
[1734238053214,0.8901164,3889.5,3889.0,0.7548]
[1734238053421,1.07626758,3889.6,3889.0,0.7548]
[1734238053630,2.22541578,3889.5,3889.0,0.7548]
[1734238053800,1.07626758,3889.6,3889.0,0.7548]
[1734238054018,0.89016616,3889.5,3889.0,0.7548]
[1734238054204,1.07626758,3889.6,3889.0,0.7548]
[1734238054435,0.89012201,3889.5,3889.0,0.7548]
[1734238054698,1.07626758,3889.6,3889.0,0.7548]
[1734238054917,2.22544892,3889.5,3889.0,0.7548]
[1734238055122,1.07626758,3889.6,3889.0,0.7548]
[1734238055313,2.22539866,3889.5,3889.0,0.7548]
[1734238055505,1.07626758,3889.6,3889.0,0.7548]
[1734238055745,0.89017128,3889.5,3889.0,0.7548]
[1734238055907,1.07626758,3889.6,3889.0,0.7548]
[1734238056108,0.89016889,3889.5,3889.0,0.7548]
[1734238056310,1.07626758,3889.6,3889.0,0.7548]
[1734238056526,0.89013797,3889.5,3889.0,0.7548]
[1734238056725,1.07626758,3889.6,3889.0,0.7548]
[1734238056921,0.89017839,3889.5,3889.0,0.7548]
[1734238057161,1.07626758,3889.6,3889.0,0.7548]
[1734238057373,2.22541549,3889.5,3889.0,0.7548]
[1734238057579,0.89017541,3889.4,3889.0,0.7548]
[1734238057879,1.07626758,3889.6,3889.0,0.7548]
[1734238058049,2.22543953,3889.5,3889.0,0.7548]
[1734238058248,1.07626758,3889.6,3889.0,0.7548]
[1734238058449,2.22531327,3889.5,3889.0,0.7548]
[1734238058655,1.07626758,3889.6,3889.0,0.7548]
[1734238058955,2.22531321,3889.5,3889.0,0.7548]
[1734238059144,1.07626758,3889.6,3889.0,0.7548]
[1734238059341,2.2252546,3889.5,3889.0,0.7548]
[1734238059569,1.07626758,3889.6,3889.0,0.7548]
[1734238059745,2.22518702,3889.5,3889.0,0.7548]
[1734238059942,1.07626758,3889.6,3889.0,0.7548]
[1734238060169,0.89006858,3889.5,3889.0,0.7548]
[1734238060410,1.07626758,3889.6,3889.0,0.7548]
[1734238060602,0.89002349,3889.5,3889.0,0.7548]
[1734238060788,1.07626758,3889.6,3889.0,0.7548]
[1734238061003,0.89002495,3889.5,3889.0,0.7548]
[1734238061181,1.07626758,3889.6,3889.0,0.7548]
[1734238061391,0.89000932,3889.5,3889.0,0.7548]
[1734238061575,1.07626758,3889.6,3889.0,0.7548]
[1734238061791,0.88998801,3889.5,3889.0,0.7548]
[1734238061970,1.07626758,3889.6,3889.0,0.7548]
[1734238062177,0.88998607,3889.5,3889.0,0.7548]
[1734238062413,1.07626758,3889.6,3889.0,0.7548]
[1734238062638,1.07626758,3889.7,3889.3,0.8144]
[1734238062831,1.07626758,3890.0,3889.4,2.57106]
[1734238063002,1.07626758,3890.1,3889.4,2.57106]
[1734238063331,0.88981334,3890.0,3889.4,2.57106]
[1734238063636,1.07626758,3890.1,3889.4,2.57106]
[1734238063784,2.22455148,3890.0,3889.4,2.57106]
[1734238063970,0.8898217,3889.9,3889.4,2.57106]
[1734238064290,1.07626758,3890.1,3889.4,2.57106]
[1734238064484,2.22457338,3890.0,3889.3,0.8144]
[1734238064679,0.88982935,3889.9,3889.5,1.27847431]
[1734238065009,1.07626758,3890.1,3889.5,1.27847431]
[1734238065303,2.22466213,3890.0,3889.5,1.27847431]
[1734238065473,0.88986485,3889.9,3889.5,1.27847431]
[1734238065682,1.07626758,3890.1,3889.5,1.27847431]
[1734238065874,2.22459515,3890.0,3889.5,1.27847431]
[1734238066073,0.88983806,3889.9,3889.5,1.27847431]
[1734238066275,1.07626758,3890.1,3889.5,1.27847431]
[1734238066474,2.22466725,3890.0,3889.5,1.27847431]
[1734238066699,0.8898669,3889.9,3889.5,1.27847431]
[1734238066912,1.07626758,3890.1,3889.5,1.27847431]
[1734238067107,2.22466585,3890.0,3889.5,1.27847431]
[1734238067412,0.88986634,3889.9,3889.5,1.27847431]
[1734238067613,1.07626758,3890.1,3889.5,1.27847431]
[1734238067811,2.22470348,3890.0,3889.5,1.27847431]
[1734238068016,0.88988139,3889.9,3889.5,1.27847431]
[1734238068244,1.07626758,3890.1,3889.5,1.27847431]
[1734238068386,2.46522031,3890.0,3889.5,1.27847431]
[1734238068588,0.8899155,3889.9,3889.5,1.27847431]
[1734238068785,1.07626758,3890.1,3889.5,1.27847431]
[1734238069025,2.46521857,3890.0,3889.5,1.27847431]
[1734238069228,0.88991487,3889.9,3889.5,1.27847431]
[1734238069527,1.07626758,3890.1,3889.5,1.27847431]
[1734238069681,2.46531985,3890.0,3889.5,1.27847431]
[1734238069887,0.88992849,3889.9,3889.5,1.27847431]
[1734238070087,1.07626758,3890.1,3889.5,1.27847431]
[1734238070290,2.46536762,3890.0,3889.5,1.27847431]
[1734238070486,0.88994161,3889.9,3889.4,1.27847431]
[1734238070702,1.07626758,3890.0,3889.4,1.27847431]
[1734238070703,0.88994161,3889.8,3889.4,1.27847431]
[1734238071004,1.07626758,3890.0,3889.4,1.27847431]
[1734238071201,3.54179692,3889.9,3889.4,1.27847431]
[1734238071386,0.89000415,3889.8,3889.4,1.27847431]
[1734238071750,1.07626758,3890.0,3889.3,0.8144]
[1734238072039,2.22498817,3889.9,3889.5,1.27847431]
[1734238072204,1.07626758,3890.0,3889.5,1.27847431]
[1734238072522,0.8900157,3889.9,3889.5,1.27847431]
[1734238072725,1.07626758,3890.0,3889.5,1.27847431]
[1734238072921,2.46560835,3889.9,3889.5,1.27847431]
[1734238073125,1.07626758,3890.0,3889.5,1.27847431]
[1734238073329,2.46568103,3889.9,3889.5,1.27847431]
[1734238073529,1.07626758,3890.0,3889.5,1.27847431]
[1734238073691,2.46568029,3889.9,3889.5,1.27847431]
[1734238074047,1.07626758,3890.0,3889.5,1.27847431]
[1734238074198,0.8029,3889.8,3888.7,2.57154]
[1734238074403,3.30145318,3889.7,3889.0,0.7827]
[1734238074606,2.2251856,3889.6,3889.0,0.7827]
[1734238074795,0.89007424,3889.5,3889.0,0.7827]
[1734238074995,1.07626758,3889.7,3889.0,0.7827]
[1734238075223,2.46600515,3889.6,3889.0,0.7827]
[1734238075440,0.89016573,3889.5,3889.0,0.7827]
[1734238075642,1.07626758,3889.6,3889.0,0.7827]
[1734238075809,0.89017415,3889.5,3889.0,0.7827]
[1734238076035,1.07626758,3889.7,3889.2,1.27847431]
[1734238076202,3.5423695,3889.6,3889.2,1.27847431]
[1734238076447,0.89020627,3889.5,3889.2,1.27847431]
[1734238076649,1.07626758,3889.6,3889.2,1.27847431]
[1734238076859,1.13080415,3889.5,3889.0,0.7827]
[1734238077044,1.07626758,3889.6,3889.1,1.27847431]
[1734238077226,0.89024418,3889.5,3889.1,1.27847431]
[1734238077411,1.07626758,3889.6,3889.1,1.27847431]
[1734238077756,0.89024506,3889.5,3889.1,1.27847431]
[1734238077952,1.07626758,3889.6,3889.1,1.27847431]
[1734238078148,0.89024508,3889.5,3889.1,1.27847431]
[1734238078355,1.07626758,3889.6,3889.1,1.27847431]
[1734238078659,0.89027634,3889.5,3889.1,1.27847431]
[1734238078829,1.07626758,3889.6,3889.1,1.27847431]
[1734238079025,0.89027637,3889.5,3889.1,1.27847431]
[1734238079337,1.07626758,3889.6,3889.1,1.27847431]
[1734238079544,2.22584321,3889.5,3889.1,1.27847431]
[1734238079724,1.07626758,3889.6,3889.1,1.27847431]
[1734238080047,2.22584422,3889.5,3889.1,1.27847431]
[1734238080252,0.89033769,3889.4,3889.1,1.27847431]
[1734238080554,1.07626758,3889.6,3889.1,1.27847431]
[1734238080757,2.22599495,3889.5,3889.1,1.27847431]
[1734238080963,1.07626758,3889.7,3889.1,1.74173274]
[1734238081253,1.07626758,3890.0,3889.5,0.7827]
[1734238081553,1.07626758,3890.2,3890.0,0.7827]
[1734238081727,1.60970117,3890.4,3890.0,0.7827]
[1734238081728,0.89032038,3890.1,3890.0,0.7827]
[1734238082056,1.07626758,3890.3,3890.0,0.7827]
[1734238082237,2.22603585,3890.2,3890.0,0.7827]
[1734238082556,1.07626758,3890.3,3890.0,0.7827]
[1734238082757,2.2259212,3890.2,3890.1,1.27847431]
[1734238082983,0.89036848,3890.2,3890.1,1.27847431]
[1734238083633,1.07626758,3890.4,3890.1,1.27847431]
[1734238084031,0.890384,3890.3,3890.1,1.74165974]
[1734238084233,1.07626758,3890.4,3890.2,0.7827]
[1734238084440,0.89049035,3890.3,3890.2,0.7827]
[1734238088042,1.07626758,3890.8,3890.2,0.7827]
[1734238088255,1.60970117,3891.0,3890.6,0.7827]
[1734238088256,1.07626758,3891.0,3890.6,0.7827]
[1734238088452,0.89009632,3890.9,3890.7,1.27847431]
[1734238088753,1.07626758,3891.1,3890.7,1.27847431]
[1734238088964,2.22443228,3891.0,3890.7,1.27847431]
[1734238089143,0.88978371,3890.9,3890.7,1.27847431]
[1734238089361,1.07626758,3891.1,3890.7,1.27847431]
[1734238089560,0.88974627,3891.0,3890.7,1.27847431]
[1734238089793,1.07626758,3891.2,3890.7,1.27847431]
[1734238089997,0.88949545,3891.1,3890.7,1.27847431]
[1734238090300,1.07626758,3891.2,3890.7,1.74161974]
[1734238090435,9.62536823,3891.6,3890.7,1.74161974]
[1734238090436,7.75246758,3891.6,3891.1,1.27847431]
[1734238090798,2.22253003,3891.5,3891.1,3.84839431]
[1734238091099,7.75246758,3891.6,3891.1,3.84839431]
[1734238091251,2.22245578,3891.5,3890.8,4.59939431]
[1734238091447,7.75246758,3891.6,3890.8,4.59939431]
[1734238091448,6.6762,3891.6,3890.8,4.59939431]
[1734238091686,0.88869217,3891.5,3891.0,1.27847431]
[1734238091832,6.6762,3891.6,3891.0,1.27847431]
[1734238092052,6.6762,3891.6,3891.0,3.84849431]
[1734238092798,6.6762,3891.6,3891.4,1.27847431]
[1734238093075,6.6762,3891.6,3891.5,0.7508]
[1734238096851,6.6762,3891.6,3891.2,3.84832431]
[1734238097104,7.4881,3891.6,3890.9,0.7508]
[1734238102810,0.8119,3891.5,3890.5,0.7508]
[1734238103122,0.8119,3891.3,3890.4,1.27847431]
[1734238104151,0.8119,3891.3,3890.6,1.27847431]
[1734238107472,0.8119,3891.3,3891.0,1.27847431]
[1734238107601,6.6762,3891.6,3891.0,1.27847431]
[1734238107820,6.6762,3891.6,3891.2,1.27847431]
[1734238108840,6.6762,3891.6,3891.0,1.27847431]
[1734238109401,6.6762,3891.6,3890.9,0.7508]
[1734238109402,6.6762,3891.6,3890.8,1.27847431]
[1734238110299,6.6762,3891.6,3891.0,1.27847431]
[1734238110622,6.6762,3891.6,3890.9,0.7593]
[1734238113215,0.7814,3891.5,3890.9,0.7593]
[1734238113945,0.7814,3891.5,3890.7,1.27847431]
[1734238114551,0.7814,3891.5,3890.7,2.03928374]
[1734238114904,6.6762,3891.6,3891.0,1.27847431]
[1734238115249,6.6762,3891.6,3891.3,1.27847431]
[1734238115415,6.6762,3891.6,3891.4,0.7593]
[1734238115815,6.6762,3891.6,3891.4,3.32906]
[1734238116042,6.6762,3891.6,3891.5,0.46075343]
[1734238117146,6.6762,3891.6,3891.1,2.56992]
[1734238117364,6.6762,3891.6,3891.1,3.84839431]
[1734238117520,6.6762,3891.6,3891.3,1.27847431]
[1734238119746,6.6762,3891.6,3891.3,3.84829431]
[1734238119950,6.6762,3891.6,3891.4,3.32904]
[1734238120112,6.6762,3891.6,3891.5,0.46075143]
[1734238121119,6.6762,3891.6,3891.1,3.32923]
[1734238121711,6.6762,3891.6,3891.1,0.7593]
[1734238122713,6.6762,3891.6,3890.8,0.7593]
[1734238122911,6.6762,3891.6,3890.8,2.03777431]
[1734238125143,0.88886095,3891.5,3890.8,2.03777431]
[1734238125350,6.6762,3891.6,3890.9,0.51243542]
[1734238125541,0.7814,3891.3,3890.0,0.7593]
[1734238125732,0.7814,3891.3,3889.6,2.5709]
[1734238125733,0.88894625,3891.2,3890.7,1.27847431]
[1734238125927,0.7814,3891.3,3890.7,1.27847431]
[1734238126368,0.88895798,3891.2,3890.7,1.27847431]
[1734238126655,0.7814,3891.3,3890.8,0.46081243]
[1734238128227,6.6762,3891.6,3891.0,1.27847431]
[1734238128430,6.6762,3891.6,3891.1,0.7593]
[1734238129575,6.6762,3891.6,3891.1,3.32924]
[1734238130672,6.6762,3891.6,3891.2,3.84834431]
[1734238131435,6.6762,3891.6,3891.2,1.27847431]
[1734238131691,6.6762,3891.6,3891.4,3.84822431]
[1734238132765,6.6762,3891.6,3891.5,0.779]
[1734238136562,6.6762,3891.6,3891.3,0.20377743]
[1734238136872,6.6762,3891.6,3890.9,0.779]
[1734238137316,2.22483695,3891.5,3891.0,2.57002]
[1734238137460,0.88993478,3891.4,3891.0,2.57002]
[1734238137669,7.75246758,3891.6,3891.0,2.57002]
[1734238137864,2.22488192,3891.5,3891.0,2.57002]
[1734238138118,0.88995277,3891.4,3891.0,2.57002]
[1734238138285,7.75246758,3891.6,3891.0,2.57002]
[1734238138479,2.22490825,3891.5,3891.1,1.27847431]
[1734238138717,0.88994819,3891.4,3891.1,1.27847431]
[1734238138903,7.75246758,3891.6,3891.1,1.27847431]
[1734238139244,2.22489631,3891.5,3891.1,1.27847431]
[1734238139399,7.75246758,3891.6,3891.1,1.27847431]
[1734238139566,2.224945,3891.5,3891.1,1.27847431]
[1734238139762,0.8899781,3891.4,3891.1,1.27847431]
[1734238140098,7.75246758,3891.6,3891.1,1.27847431]
[1734238140267,2.22495658,3891.5,3891.1,1.27847431]
[1734238140467,0.88998263,3891.4,3891.1,1.27847431]
[1734238140665,7.75246758,3891.6,3891.1,1.27847431]
[1734238141005,2.22495983,3891.5,3891.1,1.27847431]
[1734238141214,7.75246758,3891.6,3891.1,1.27847431]
[1734238141501,2.22498547,3891.5,3891.1,1.27847431]
[1734238141796,0.88690172,3891.4,3891.1,1.79222706]
[1734238141996,7.75246758,3891.6,3891.1,1.79222706]
[1734238142299,2.41129739,3891.5,3891.1,1.79222706]
[1734238142500,1.07626758,3891.5,3891.1,1.79222706]
[1734238142800,7.75246758,3891.6,3891.1,1.79222706]
[1734238143010,1.33505303,3891.5,3891.1,1.79222706]
[1734238143209,7.75246758,3891.6,3891.1,1.79222706]
[1734238143393,1.33507026,3891.5,3891.1,1.79222706]
[1734238143585,7.75246758,3891.6,3891.1,1.79222706]
[1734238143774,1.07626758,3891.5,3891.1,1.79222706]
[1734238144507,7.75246758,3891.6,3891.1,1.79222706]
[1734238144714,1.33505836,3891.5,3891.1,1.79222706]
[1734238145026,1.07626758,3891.5,3891.1,1.79222706]
[1734238145890,7.75246758,3891.6,3891.1,1.79222706]
[1734238146112,1.33506634,3891.5,3891.1,1.79222706]
[1734238146308,7.75246758,3891.6,3891.1,1.79222706]
[1734238146509,1.33510086,3891.5,3891.1,1.79222706]
[1734238146698,6.6762,3891.6,3891.5,0.779]
[1734238156522,6.6762,3891.6,3891.4,0.50648256]
[1734238157117,6.6762,3891.6,3891.5,1.27847431]
[1734238161815,6.6762,3891.6,3891.4,3.07623256]
[1734238162000,6.6762,3891.6,3891.5,1.66692757]
[1734238173235,6.6762,3891.6,3891.5,0.38845326]
[1734238173430,6.6762,3891.6,3891.5,1.66692757]
[1734238176222,6.86875205,3891.6,3891.5,1.66692757]
[1734238178670,6.6762,3891.6,3891.5,1.66692757]
[1734238179228,6.6762,3891.6,3890.9,0.8217]
[1734238179588,0.7527,3891.5,3890.9,1.27847431]
[1734238179733,2.22630085,3891.4,3890.9,1.27847431]
[1734238180075,2.22632822,3891.3,3890.9,1.27847431]
[1734238180244,1.07626758,3891.4,3890.9,1.27847431]
[1734238180565,0.89052953,3891.3,3890.9,1.27847431]